{"text_format":"3","workbook":"xlsx","n_sheets":3,"sheets":["Strona 1 Wniosku","Strona 2 Wniosku","Arkusz1"],"not_rendered":{"defined_names":2},"read":"whole","date_system":"1900"}

{"sheet":"Strona 1 Wniosku","index":0,"n_rows":42,"n_cols":8,"rows_kept":42,"merged":[[4,1,7,3],[5,5,5,10],[10,1,10,4],[11,5,12,8],[14,0,14,10],[16,0,16,5],[16,7,16,10],[17,1,17,8],[18,0,18,2],[18,3,18,10],[19,0,19,2],[19,3,19,4],[22,1,22,10],[24,1,24,10],[28,0,28,10],[29,1,29,8],[30,1,30,8],[31,1,31,8],[32,2,32,3],[32,5,32,10],[35,1,35,3],[35,5,35,7],[39,1,39,3],[39,5,39,7]]}
[]
[]
[]
[]
[]
[{"$nulls":5},"………………………………, dnia ……..…………"]
[]
[]
[null,null,"Pieczęć wnioskodawcy"]
[]
[null,"Znak wnioskodawcy: "]
[{"$nulls":5},"Wojewódzki Fundusz Ochrony Środowiska                      i Gospodarki Wodnej w Zielonej Górze\nul. Miodowa 11\n65-602 Zielona Góra"]
[]
[]
["WNIOSEK O WYPŁATĘ ŚRODKÓW Z ROZLICZENIEM FINANSOWYM I RZECZOWYM REALIZACJI ZADANIA                                             w ramach Programu Regionalnego Wsparcia Edukacji Ekologicznej Część 2) FUNDUSZ EKOLOGII"]
[]
["Wnioskujemy o wypłatę środków na cele bieżące w wysokości:",{"$nulls":5},{"$f":"'Strona 2 Wniosku'!I22","v":{"v":0,"d":"0.00 zł"}},"szare pola wypełniane są automatycznie"]
["słownie:",{"$f":"SLOWNIE(G17)","v":"zero groszy"}]
["przyznanych na realizację Zadania pn:"]
["zgodnie z umową dotacji numer :"]
[]
["Załączniki do wniosku:"]
["1.","Zestawienie dokumentów księgowych potwierdzających poniesione koszty na realizację Zadania "]
["2.","Zdjęcie tablicy informacyjnej"]
["3.","Dokumentacja fotograficzna potwierdzająca oznakowanie wszystkich elementów Zadania zgodnie z Instrukcją oznakowania zadań realizowanych w ramach Programu Regionalnego Wsparcia Edukacji Ekologicznej"]
["4.","Zrzut ekranu ze strony internetowej Dotowanego z logotypami NFOŚiGW i WFOŚiGW w Zielonej Górze"]
["5.","Powykonawcza Karta rzeczowo - ekologiczna"]
[]
["Wnioskowaną kwotę prosimy przekazać na nasze konto wskazane we wniosku o dofinasowanie."]
[]
[null,"Imię i nazwisko osoby odpowiedzialnej za przygotowanie informacji: "]
[]
[null,"telefon",null,null,"email"]
[]
[]
[null,"Główny Księgowy / Skarbnik                     ",{"$nulls":3},"  Kierownik Jednostki / Osoba upoważniona do reprezentacji Dotowanego"]
[]
[]
[]
[null,"…………………………………………………. ",{"$nulls":3},"                                                ……………………………………………………"]
[]
["Wniosek należy przesłać w wersji papierowej do biura Funduszu  i elektronicznej na adres rozliczenia@wfosigw.zgora.pl"]

{"sheet":"Strona 2 Wniosku","index":1,"n_rows":46,"n_cols":9,"rows_kept":46,"merged":[[1,1,1,8],[3,1,4,1],[3,2,4,2],[3,3,4,3],[3,4,4,4],[3,5,4,5],[3,6,4,6],[3,7,4,7],[3,8,4,8],[20,1,20,3],[21,1,21,7],[25,3,25,5],[26,3,26,5],[27,3,27,5],[28,3,28,5],[29,3,29,5],[32,2,32,8],[33,2,33,8],[34,2,34,8],[35,2,35,8],[37,3,37,4],[37,6,37,7],[42,3,42,4],[42,6,42,7]]}
[]
[null,"1. Zestawienie dokumentów księgowych potwierdzających poniesione koszty na realizację Zadania"]
[]
[null,"Lp.","Numer\nfaktury, rachunku\n lub innego dowodu księgowego o równoważnej wartości księgowej ","Data wystawienia\nfaktury, rachunku \nlub innego dowodu księgowego o równoważnej wartości księgowej od 1.09.2024 do 30.06.2025","Wartość brutto           [zł]","Data zapłaty /dd.mm.rrrr/","Koszt kwalifikowany    netto / brutto*                          [zł]","Koszt niekwalifikowany [zł]","Wnioskowana kwota wypłaty ze środków NFOŚiGW i WFOŚiGW Program Regionalnego Wsparcia Edukacji Ekologicznej"]
[]
[null,1,{"$nulls":5},{"$f":"E6-G6","v":{"v":0,"d":"0.00 zł"}},{"$f":"G6","v":{"v":0,"d":"0.00 zł"}}]
[null,{"$f":"B6+1","v":2},{"$nulls":5},{"$f":"E7-G7","v":{"v":0,"d":"0.00 zł"}},{"$f":"G7","v":{"v":0,"d":"0.00 zł"}}]
[null,{"$f":"B7+1","v":3},{"$nulls":5},{"v":0,"d":"0.00 zł"},{"v":0,"d":"0.00 zł"}]
[null,4,{"$nulls":5},{"v":0,"d":"0.00 zł"},{"v":0,"d":"0.00 zł"}]
[null,5,{"$nulls":5},{"v":0,"d":"0.00 zł"},{"v":0,"d":"0.00 zł"}]
[null,6,{"$nulls":5},{"v":0,"d":"0.00 zł"},{"v":0,"d":"0.00 zł"}]
[null,7,{"$nulls":5},{"v":0,"d":"0.00 zł"},{"v":0,"d":"0.00 zł"}]
[null,8,{"$nulls":5},{"v":0,"d":"0.00 zł"},{"v":0,"d":"0.00 zł"}]
[null,9,{"$nulls":5},{"$f":"E14-G14","v":{"v":0,"d":"0.00 zł"}},{"$f":"G14","v":{"v":0,"d":"0.00 zł"}}]
[null,10,{"$nulls":5},{"v":0,"d":"0.00 zł"},{"v":0,"d":"0.00 zł"}]
[null,11,{"$nulls":5},{"v":0,"d":"0.00 zł"},{"v":0,"d":"0.00 zł"}]
[null,12,{"$nulls":5},{"v":0,"d":"0.00 zł"},{"v":0,"d":"0.00 zł"}]
[null,13,{"$nulls":5},{"v":0,"d":"0.00 zł"},{"v":0,"d":"0.00 zł"}]
[null,14,{"$nulls":5},{"v":0,"d":"0.00 zł"},{"v":0,"d":"0.00 zł"}]
[null,15,{"$nulls":5},{"v":0,"d":"0.00 zł"},{"v":0,"d":"0.00 zł"}]
[null,"SUMA",null,null,{"$f":"SUM(E6:E20)","v":{"v":0,"d":"0.00 zł"}},null,{"$f":"SUM(G6:G20)","v":{"v":0,"d":"0.00 zł"}},{"$f":"SUM(H6:H20)","v":{"v":0,"d":"0.00 zł"}},{"$f":"SUM(I6:I20)","v":{"v":0,"d":"0.00 zł"}}]
[null,"SUMA do wypłaty",{"$nulls":6},{"$f":"IF(I21<8000,I21,8000)","v":{"v":0,"d":"0.00 zł"}}]
[{"$nulls":4}," "]
[null,"2. ZBILANSOWANIE ZADANIA – ŹRÓDŁA FINANSOWANIA "]
[]
[{"$nulls":3},"Źródła finasowania",null,null,"Kwota"]
[{"$nulls":3},"Środki:\n1.\tRWEE dotacja (środki NFOŚiGW oraz WFOŚiGW w Zielonej Górze)",null,null,{"$f":"I22","v":{"v":0,"d":"0.00 zł"}}]
[{"$nulls":3},"Środki własne / budżet własny*"]
[{"$nulls":3},"Inne środki bezzwrotne (proszę podać źródło)*"]
[{"$nulls":3},"RAZEM",null,null,{"$f":"SUM(G27:G29)","v":{"v":0,"d":"0.00 zł"}}]
[]
[null,null,"OŚWIADCZENIA"]
[null,"1.","Potwierdzamy zgodność w/w danych z dokumentacją rzeczową oraz finansowo – księgową związaną z realizacją dofinansowanego Zadania."]
[null,"2.","Oświadczamy, że prace zrealizowane w ramach Zadania wykonano zgodnie z Programem Regionalnego Wsparcia Edukacji Ekologicznej"]
[null,"3.","Oświadczamy, że oryginalne dokumenty księgowe zostały oznakowane zapisem \"Sfinansowano w formie dotacji ze środków NFOŚiGW oraz WFOŚiGW w Zielonej Górze w ramach Programu Regionalnego Wsparcia Edukacji Ekologicznej, część 2) Fundusz Ekologii” lub równoważną pod względem zawartości informacją. "]
[null,null,"Świadomi odpowiedzialności karnej za podanie nieprawdy, zgodnie z art. 233 Kodeksu Karnego, potwierdzamy własnoręcznymi podpisami wiarygodność danych zamieszczonych w niniejszym wniosku o wypłatę środków."]
[]
[{"$nulls":3},"Skarbnik / Główny Księgowy",null,null,"  Kierownik Jednostki / Osoba upoważniona do reprezentacji Dotowanego"]
[]
[]
[]
[]
[{"$nulls":3},"…..................................................................................................",null,null,"….............................................................................................................."]
[]
[]
[null,null,"* niepotrzebne skreślić"]

{"sheet":"Arkusz1","index":2,"n_rows":0,"n_cols":0,"rows_kept":0,"hidden":true}